[Event "Titled Tuesday Blitz November 01 Late 2022"]
[White "Hughes, Tyler B"]
[Black "Sourath Biswas"]
[WhiteFideId "2026775"]
[BlackFideId "35091484"]
[WhiteElo "2287"]
[BlackElo "2164"]
[Result "1-0"]
[Round "04"]
[TimeControl "180+1"]
[Date "2022.11.02"]
[WhiteClock "0:00:07"]
[BlackClock "0:00:25"]

1. d4 {[%clk 0:03:00]}  b6 {[%clk 0:02:27]} 2. c4 {[%clk 0:02:59]}  Bb7 {[%clk 0:02:24]} 3. Nc3 {[%clk 0:03:00]}  Nf6 {[%clk 0:01:53]} 4. d5 {[%clk 0:02:58]}  e6 {[%clk 0:01:49]} 5. a3 {[%clk 0:02:58]}  Be7 {[%clk 0:01:47]} 6. g3 {[%clk 0:02:58]}  O-O {[%clk 0:01:23]} 7. Bg2 {[%clk 0:02:57]}  exd5 {[%clk 0:01:17]} 8. cxd5 {[%clk 0:02:55]}  d6 {[%clk 0:01:17]} 9. Nh3 {[%clk 0:02:50]}  Nbd7 {[%clk 0:01:18]} 10. O-O {[%clk 0:02:47]}  Rc8 {[%clk 0:01:19]} 11. b4 {[%clk 0:02:26]}  c6 {[%clk 0:01:19]} 12. dxc6 {[%clk 0:02:24]}  Bxc6 {[%clk 0:01:20]} 13. Bxc6 {[%clk 0:02:24]}  Rxc6 {[%clk 0:01:21]} 14. Bb2 {[%clk 0:02:24]}  Ne5 {[%clk 0:01:20]} 15. Rc1 {[%clk 0:02:02]}  Nc4 {[%clk 0:01:17]} 16. Ba1 {[%clk 0:02:02]}  Nxa3 {[%clk 0:01:16]} 17. Qa4 {[%clk 0:02:01]}  Qc8 {[%clk 0:01:15]} 18. Nd5 {[%clk 0:01:39]}  Nxd5 {[%clk 0:00:59]} 19. Rxc6 {[%clk 0:01:19]}  Qxh3 {[%clk 0:00:59]} 20. Qxa3 {[%clk 0:01:19]}  Nf6 {[%clk 0:01:00]} 21. Bxf6 {[%clk 0:01:14]}  Bxf6 {[%clk 0:01:01]} 22. Qxa7 {[%clk 0:01:13]}  Qe6 {[%clk 0:00:59]} 23. e3 {[%clk 0:01:02]}  Qe4 {[%clk 0:00:56]} 24. Qxb6 {[%clk 0:01:00]}  d5 {[%clk 0:00:52]} 25. b5 {[%clk 0:00:53]}  d4 {[%clk 0:00:51]} 26. exd4 {[%clk 0:00:41]}  Bxd4 {[%clk 0:00:52]} 27. Qa6 {[%clk 0:00:41]}  Qf3 {[%clk 0:00:45]} 28. Qa2 {[%clk 0:00:27]}  h5 {[%clk 0:00:38]} 29. Qd2 {[%clk 0:00:20]}  Rd8 {[%clk 0:00:36]} 30. Qc2 {[%clk 0:00:10]}  h4 {[%clk 0:00:21]} 31. Rc8 {[%clk 0:00:09]}  Rxc8 {[%clk 0:00:18]} 32. Qxc8+ {[%clk 0:00:09]}  Kh7 {[%clk 0:00:19]} 33. Qh3 {[%clk 0:00:08]}  g5 {[%clk 0:00:19]} 34. Qg2 {[%clk 0:00:07]}  Qb3 {[%clk 0:00:18]} 35. Qe4+ {[%clk 0:00:06]}  Kh6 {[%clk 0:00:18]} 36. Qxd4 {[%clk 0:00:07]}  Qxb5 {[%clk 0:00:19]} 37. Qf6+ {[%clk 0:00:07]}  Kh5 {[%clk 0:00:20]} 38. Qh8+ {[%clk 0:00:04]}  Kg4 {[%clk 0:00:19]} 39. Qd4+ {[%clk 0:00:02]}  Kh5 {[%clk 0:00:19]} 40. Qe4 {[%clk 0:00:02]}  f5 {[%clk 0:00:19]} 41. Qf3+ {[%clk 0:00:02]}  g4 {[%clk 0:00:20]} 42. Qf4 {[%clk 0:00:02]}  hxg3 {[%clk 0:00:21]} 43. hxg3 {[%clk 0:00:02]}  Qd3 {[%clk 0:00:22]} 44. Kg2 {[%clk 0:00:02]}  Qd5+ {[%clk 0:00:22]} 45. Kh2 {[%clk 0:00:01]}  Qd3 {[%clk 0:00:22]} 46. Rh1 {[%clk 0:00:01]}  Kg6 {[%clk 0:00:22]} 47. Kg2 {[%clk 0:00:01]}  Qd5+ {[%clk 0:00:22]} 48. Kh2 {[%clk 0:00:01]}  Qd3 {[%clk 0:00:20]} 49. Qe3 {[%clk 0:00:02]}  Qd5 {[%clk 0:00:20]} 50. Re1 {[%clk 0:00:02]}  Qa2 {[%clk 0:00:18]} 51. Qe8+ {[%clk 0:00:02]}  Kg5 {[%clk 0:00:17]} 52. Qe7+ {[%clk 0:00:02]}  Kh5 {[%clk 0:00:18]} 53. Qe3 {[%clk 0:00:03]}  Kg6 {[%clk 0:00:18]} 54. Qe6+ {[%clk 0:00:02]}  Qxe6 {[%clk 0:00:18]} 55. Rxe6+ {[%clk 0:00:03]}  Kf7 {[%clk 0:00:15]} 56. Ra6 {[%clk 0:00:03]}  f4 {[%clk 0:00:15]} 57. gxf4 {[%clk 0:00:02]}  Kg7 {[%clk 0:00:15]} 58. Kg3 {[%clk 0:00:03]}  Kf7 {[%clk 0:00:16]} 59. Kxg4 {[%clk 0:00:04]}  Ke8 {[%clk 0:00:17]} 60. f5 {[%clk 0:00:04]}  Kd7 {[%clk 0:00:18]} 61. f6 {[%clk 0:00:05]}  Kc7 {[%clk 0:00:19]} 62. Re6 {[%clk 0:00:04]}  Kb7 {[%clk 0:00:19]} 63. Re1 {[%clk 0:00:05]}  Ka7 {[%clk 0:00:20]} 64. f7 {[%clk 0:00:06]}  Kb7 {[%clk 0:00:21]} 65. f8=Q {[%clk 0:00:07]}  Kc6 {[%clk 0:00:22]} 66. Qd8 {[%clk 0:00:06]}  Kb5 {[%clk 0:00:23]} 67. Qd2 {[%clk 0:00:07]}  Ka4 {[%clk 0:00:24]} 68. Rc1 {[%clk 0:00:08]}  Kb3 {[%clk 0:00:24]} 69. Qc3+ {[%clk 0:00:08]}  Ka2 {[%clk 0:00:25]} 70. Ra1# {[%clk 0:00:07]} 1-0


[Site "https://www.chess.com"]

[Event "Titled Tuesday Blitz November 01 Late 2022"]
[White "Itkis, Boris"]
[Black "Grot, Blazej"]
[WhiteFideId "1209167"]
[BlackFideId "21835845"]
[WhiteElo "2232"]
[BlackElo "1739"]
[Result "0-1"]
[Round "04"]
[TimeControl "180+1"]
[Date "2022.11.02"]
[WhiteClock "0:01:28"]
[BlackClock "0:01:10"]

1. e4 {[%clk 0:03:00]}  d6 {[%clk 0:01:56]} 2. d4 {[%clk 0:02:58]}  Nf6 {[%clk 0:01:56]} 3. Nc3 {[%clk 0:02:58]}  c6 {[%clk 0:01:56]} 4. Bg5 {[%clk 0:02:54]}  Qa5 {[%clk 0:01:56]} 5. Qd2 {[%clk 0:02:49]}  Nbd7 {[%clk 0:01:54]} 6. Nf3 {[%clk 0:02:47]}  b5 {[%clk 0:01:54]} 7. e5 {[%clk 0:02:37]}  b4 {[%clk 0:01:46]} 8. exf6 {[%clk 0:02:05]}  bxc3 {[%clk 0:01:45]} 9. bxc3 {[%clk 0:02:02]}  Nxf6 {[%clk 0:01:45]} 10. Bd3 {[%clk 0:02:00]}  Ba6 {[%clk 0:01:41]} 11. O-O {[%clk 0:01:58]}  h6 {[%clk 0:01:38]} 12. Bxf6 {[%clk 0:01:56]}  gxf6 {[%clk 0:01:37]} 13. Rfe1 {[%clk 0:01:53]}  Rg8 {[%clk 0:01:30]} 14. g3 {[%clk 0:01:51]}  Bc8 {[%clk 0:01:23]} 15. Nh4 {[%clk 0:01:50]}  Qg5 {[%clk 0:01:19]} 16. Rad1 {[%clk 0:01:37]}  Qxh4 {[%clk 0:01:16]} 17. Be4 {[%clk 0:01:28]}  Bd7 {[%clk 0:01:10]} 0-1


[Site "https://www.chess.com"]

[Event "Titled Tuesday Blitz November 01 Late 2022"]
[White "Kaplan, Avi Harrison"]
[Black "Ekdyshman, Mikhail"]
[WhiteFideId "30934559"]
[BlackFideId "4149416"]
[WhiteElo "1983"]
[BlackElo "2164"]
[Result "1-0"]
[Round "04"]
[TimeControl "180+1"]
[Date "2022.11.02"]
[WhiteClock "0:01:01"]
[BlackClock "0:00:43"]

1. d4 {[%clk 0:03:00]}  Nf6 {[%clk 0:02:59]} 2. c4 {[%clk 0:03:01]}  c5 {[%clk 0:02:59]} 3. d5 {[%clk 0:03:01]}  b5 {[%clk 0:02:59]} 4. cxb5 {[%clk 0:02:58]}  a6 {[%clk 0:03:00]} 5. Nc3 {[%clk 0:02:47]}  axb5 {[%clk 0:02:57]} 6. e4 {[%clk 0:02:48]}  b4 {[%clk 0:02:55]} 7. Nb5 {[%clk 0:02:45]}  d6 {[%clk 0:02:51]} 8. Nf3 {[%clk 0:02:34]}  g6 {[%clk 0:02:50]} 9. Bd3 {[%clk 0:02:28]}  Bg7 {[%clk 0:02:50]} 10. Bf4 {[%clk 0:02:27]}  O-O {[%clk 0:02:48]} 11. Qd2 {[%clk 0:02:27]}  Ra6 {[%clk 0:02:41]} 12. a4 {[%clk 0:02:26]}  e6 {[%clk 0:02:21]} 13. Bxd6 {[%clk 0:02:16]}  Nxe4 {[%clk 0:01:44]} 14. Bxe4 {[%clk 0:02:11]}  Rxd6 {[%clk 0:01:45]} 15. Nxd6 {[%clk 0:02:10]}  Qxd6 {[%clk 0:01:45]} 16. O-O {[%clk 0:02:06]}  f5 {[%clk 0:01:43]} 17. Bc2 {[%clk 0:01:48]}  exd5 {[%clk 0:01:40]} 18. Bb3 {[%clk 0:01:48]}  Rd8 {[%clk 0:01:35]} 19. Rfd1 {[%clk 0:01:39]}  Bb7 {[%clk 0:01:35]} 20. a5 {[%clk 0:01:30]}  Kh8 {[%clk 0:01:33]} 21. Ng5 {[%clk 0:01:24]}  Qf6 {[%clk 0:01:28]} 22. Re1 {[%clk 0:01:14]}  h6 {[%clk 0:01:08]} 23. Ne6 {[%clk 0:01:13]}  Rd7 {[%clk 0:01:00]} 24. Nxc5 {[%clk 0:01:08]}  Rc7 {[%clk 0:00:43]} 25. Nxb7 {[%clk 0:01:05]}  Rxb7 {[%clk 0:00:43]} 26. Re8+ {[%clk 0:01:01]}  Kh7 {[%clk 0:00:43]} 27. Qxd5 {[%clk 0:01:01]} 1-0


[Site "https://www.chess.com"]

[Event "Titled Tuesday Blitz November 01 Late 2022"]
[White "Khandelwal, Ankush"]
[Black "Yuan, Qingyu"]
[WhiteFideId "413470"]
[BlackFideId "8609772"]
[WhiteElo "2271"]
[BlackElo "2359"]
[Result "0-1"]
[Round "04"]
[TimeControl "180+1"]
[Date "2022.11.02"]
[WhiteClock "0:01:02"]
[BlackClock "0:01:40"]

1. e4 {[%clk 0:03:00]}  c6 {[%clk 0:03:00]} 2. d4 {[%clk 0:03:00]}  d5 {[%clk 0:03:01]} 3. e5 {[%clk 0:03:00]}  c5 {[%clk 0:03:01]} 4. dxc5 {[%clk 0:03:00]}  e6 {[%clk 0:03:02]} 5. a3 {[%clk 0:02:08]}  Bxc5 {[%clk 0:02:56]} 6. b4 {[%clk 0:02:07]}  Be7 {[%clk 0:02:54]} 7. Nf3 {[%clk 0:02:04]}  a5 {[%clk 0:02:53]} 8. b5 {[%clk 0:01:59]}  Nd7 {[%clk 0:02:42]} 9. Be2 {[%clk 0:01:55]}  f6 {[%clk 0:02:42]} 10. Bb2 {[%clk 0:01:51]}  Nh6 {[%clk 0:02:41]} 11. O-O {[%clk 0:01:49]}  Nf7 {[%clk 0:02:41]} 12. exf6 {[%clk 0:01:42]}  Bxf6 {[%clk 0:02:42]} 13. Bc3 {[%clk 0:01:40]}  O-O {[%clk 0:02:35]} 14. Re1 {[%clk 0:01:41]}  Re8 {[%clk 0:02:24]} 15. Bd3 {[%clk 0:01:37]}  e5 {[%clk 0:02:16]} 16. Bf5 {[%clk 0:01:30]}  Nb6 {[%clk 0:02:12]} 17. Bxc8 {[%clk 0:01:29]}  Qxc8 {[%clk 0:02:12]} 18. a4 {[%clk 0:01:24]}  d4 {[%clk 0:02:05]} 19. Bb2 {[%clk 0:01:22]}  Nc4 {[%clk 0:02:05]} 20. Bc1 {[%clk 0:01:23]}  Qc5 {[%clk 0:01:46]} 21. Nbd2 {[%clk 0:01:20]}  Nfd6 {[%clk 0:01:43]} 22. Nxc4 {[%clk 0:01:09]}  Nxc4 {[%clk 0:01:43]} 23. Nd2 {[%clk 0:01:09]}  Nxd2 {[%clk 0:01:41]} 24. Bxd2 {[%clk 0:01:09]}  e4 {[%clk 0:01:41]} 25. Rc1 {[%clk 0:01:06]}  e3 {[%clk 0:01:39]} 26. fxe3 {[%clk 0:01:04]}  dxe3 {[%clk 0:01:39]} 27. Bxe3 {[%clk 0:01:02]}  Rxe3 {[%clk 0:01:40]} 28. Qd5+ {[%clk 0:01:02]}  Qxd5 {[%clk 0:01:40]} 0-1


[Site "https://www.chess.com"]

[Event "Titled Tuesday Blitz November 01 Late 2022"]
[White "Korchmar, Vasiliy"]
[Black "Storey, Charles H"]
[WhiteFideId "24131750"]
[BlackFideId "406686"]
[WhiteElo "2370"]
[BlackElo "2252"]
[Result "0-1"]
[Round "04"]
[TimeControl "180+1"]
[Date "2022.11.02"]
[WhiteClock "0:00:02"]
[BlackClock "0:00:27"]

1. e4 {[%clk 0:03:00]}  g6 {[%clk 0:02:57]} 2. d4 {[%clk 0:03:00]}  Bg7 {[%clk 0:02:58]} 3. Nc3 {[%clk 0:03:00]}  c5 {[%clk 0:02:59]} 4. d5 {[%clk 0:03:00]}  d6 {[%clk 0:02:59]} 5. Bb5+ {[%clk 0:03:00]}  Bd7 {[%clk 0:02:58]} 6. a4 {[%clk 0:03:01]}  Nf6 {[%clk 0:02:59]} 7. Nf3 {[%clk 0:03:01]}  O-O {[%clk 0:02:58]} 8. O-O {[%clk 0:03:01]}  Bxb5 {[%clk 0:02:59]} 9. axb5 {[%clk 0:03:01]}  Nbd7 {[%clk 0:02:59]} 10. Qe2 {[%clk 0:03:01]}  Ne8 {[%clk 0:03:00]} 11. Bf4 {[%clk 0:03:00]}  f6 {[%clk 0:02:59]} 12. Nd2 {[%clk 0:02:53]}  Nc7 {[%clk 0:02:59]} 13. Nc4 {[%clk 0:02:14]}  Nb6 {[%clk 0:02:49]} 14. Na5 {[%clk 0:02:06]}  Rb8 {[%clk 0:02:37]} 15. h3 {[%clk 0:02:06]}  Qd7 {[%clk 0:02:35]} 16. Bg3 {[%clk 0:02:00]}  f5 {[%clk 0:02:32]} 17. exf5 {[%clk 0:01:35]}  Rxf5 {[%clk 0:02:29]} 18. Nc4 {[%clk 0:01:35]}  Nbxd5 {[%clk 0:02:10]} 19. Nxd5 {[%clk 0:01:31]}  Nxd5 {[%clk 0:02:09]} 20. Rxa7 {[%clk 0:01:29]}  Nf4 {[%clk 0:01:57]} 21. Bxf4 {[%clk 0:01:25]}  Rxf4 {[%clk 0:01:58]} 22. Nb6 {[%clk 0:01:23]}  Qf5 {[%clk 0:01:46]} 23. Qxe7 {[%clk 0:01:20]}  Bd4 {[%clk 0:01:42]} 24. Qxd6 {[%clk 0:00:54]}  Rxf2 {[%clk 0:01:05]} 25. Qxb8+ {[%clk 0:00:50]}  Qf8 {[%clk 0:01:05]} 26. Qxf8+ {[%clk 0:00:36]}  Rxf8+ {[%clk 0:01:04]} 27. Kh2 {[%clk 0:00:26]}  Rxf1 {[%clk 0:01:03]} 28. Rxb7 {[%clk 0:00:27]}  Be5+ {[%clk 0:00:57]} 29. g3 {[%clk 0:00:27]}  Rf2+ {[%clk 0:00:57]} 30. Kg1 {[%clk 0:00:27]}  Rxc2 {[%clk 0:00:54]} 31. Nd7 {[%clk 0:00:14]}  Bd4+ {[%clk 0:00:50]} 32. Kf1 {[%clk 0:00:13]}  Rxb2 {[%clk 0:00:50]} 33. b6 {[%clk 0:00:10]}  c4 {[%clk 0:00:50]} 34. Rc7 {[%clk 0:00:06]}  Bxb6 {[%clk 0:00:45]} 35. Rxc4 {[%clk 0:00:03]}  Be3 {[%clk 0:00:32]} 36. Rc7 {[%clk 0:00:03]}  Rf2+ {[%clk 0:00:28]} 37. Ke1 {[%clk 0:00:03]}  Rf7 {[%clk 0:00:26]} 38. Rc8+ {[%clk 0:00:02]}  Kg7 {[%clk 0:00:27]} 0-1


[Site "https://www.chess.com"]

[Event "Titled Tuesday Blitz November 01 Late 2022"]
[White "Kravtsiv, Martyn"]
[Black "Tokhirjonova, Gulrukhbegim"]
[WhiteFideId "14113147"]
[BlackFideId "14203626"]
[WhiteElo "2802"]
[BlackElo "2560"]
[Result "0-1"]
[Round "04"]
[TimeControl "180+1"]
[Date "2022.11.02"]
[WhiteClock "0:00:02"]
[BlackClock "0:00:08"]

1. e4 {[%clk 0:03:00]}  e5 {[%clk 0:02:58]} 2. Nf3 {[%clk 0:03:00]}  Nc6 {[%clk 0:02:58]} 3. Nc3 {[%clk 0:03:00]}  Nf6 {[%clk 0:02:57]} 4. a4 {[%clk 0:03:01]}  g6 {[%clk 0:02:42]} 5. Bc4 {[%clk 0:02:59]}  Bg7 {[%clk 0:02:41]} 6. d3 {[%clk 0:02:59]}  O-O {[%clk 0:02:39]} 7. Bg5 {[%clk 0:02:55]}  h6 {[%clk 0:02:36]} 8. Be3 {[%clk 0:02:54]}  d6 {[%clk 0:02:35]} 9. h3 {[%clk 0:02:54]}  Be6 {[%clk 0:02:34]} 10. Bxe6 {[%clk 0:02:53]}  fxe6 {[%clk 0:02:33]} 11. Ne2 {[%clk 0:02:54]}  Nh5 {[%clk 0:02:25]} 12. c3 {[%clk 0:02:33]}  d5 {[%clk 0:02:24]} 13. Qb3 {[%clk 0:02:32]}  Qd7 {[%clk 0:02:02]} 14. a5 {[%clk 0:02:19]}  Kh7 {[%clk 0:02:00]} 15. O-O {[%clk 0:02:11]}  Rxf3 {[%clk 0:01:53]} 16. gxf3 {[%clk 0:02:11]}  Rf8 {[%clk 0:01:54]} 17. Kg2 {[%clk 0:02:11]}  Qf7 {[%clk 0:01:50]} 18. Ng1 {[%clk 0:02:10]}  d4 {[%clk 0:01:49]} 19. Bd2 {[%clk 0:02:09]}  g5 {[%clk 0:01:34]} 20. Qxb7 {[%clk 0:02:07]}  Ne7 {[%clk 0:01:32]} 21. Qxc7 {[%clk 0:02:03]}  Qf6 {[%clk 0:01:32]} 22. cxd4 {[%clk 0:01:49]}  Ng6 {[%clk 0:01:31]} 23. dxe5 {[%clk 0:01:44]}  Nh4+ {[%clk 0:01:06]} 24. Kh1 {[%clk 0:01:38]}  Qg6 {[%clk 0:01:07]} 25. Rae1 {[%clk 0:01:24]}  Nf4 {[%clk 0:00:50]} 26. Re3 {[%clk 0:01:10]}  Nxh3 {[%clk 0:00:46]} 27. Nxh3 {[%clk 0:01:08]}  Nxf3 {[%clk 0:00:41]} 28. Rxf3 {[%clk 0:00:31]}  Rxf3 {[%clk 0:00:40]} 29. Kg2 {[%clk 0:00:22]}  Rxd3 {[%clk 0:00:20]} 30. Nxg5+ {[%clk 0:00:20]}  hxg5 {[%clk 0:00:17]} 31. Rh1+ {[%clk 0:00:20]}  Kg8 {[%clk 0:00:17]} 32. Qb8+ {[%clk 0:00:19]}  Bf8 {[%clk 0:00:15]} 33. Be3 {[%clk 0:00:12]}  Qxe4+ {[%clk 0:00:15]} 34. Kg3 {[%clk 0:00:12]}  Qxh1 {[%clk 0:00:14]} 35. Qc8 {[%clk 0:00:08]}  Qh4+ {[%clk 0:00:13]} 36. Kg2 {[%clk 0:00:08]}  Qe4+ {[%clk 0:00:13]} 37. Kh2 {[%clk 0:00:08]}  Qf5 {[%clk 0:00:13]} 38. a6 {[%clk 0:00:06]}  Qxe5+ {[%clk 0:00:10]} 39. Kg2 {[%clk 0:00:05]}  Qd5+ {[%clk 0:00:10]} 40. Kh2 {[%clk 0:00:05]}  Qd7 {[%clk 0:00:10]} 41. Qc2 {[%clk 0:00:04]}  Bd6+ {[%clk 0:00:10]} 42. Kg2 {[%clk 0:00:03]}  Bf4 {[%clk 0:00:11]} 43. Bxa7 {[%clk 0:00:03]}  Qd5+ {[%clk 0:00:08]} 44. Kf1 {[%clk 0:00:03]}  Rd1+ {[%clk 0:00:08]} 45. Ke2 {[%clk 0:00:02]}  Rd2+ {[%clk 0:00:08]} 0-1


[Site "https://www.chess.com"]

[Event "Titled Tuesday Blitz November 01 Late 2022"]
[White "Krzywda, Andrzej"]
[Black "Taboas Rodriguez, Daniel"]
[WhiteFideId "1114565"]
[BlackFideId "2208466"]
[WhiteElo "2149"]
[BlackElo "2429"]
[Result "1-0"]
[Round "04"]
[TimeControl "180+1"]
[Date "2022.11.02"]
[WhiteClock "0:00:06"]
[BlackClock "0:00:23"]

1. e4 {[%clk 0:03:00]}  e5 {[%clk 0:03:00]} 2. Nf3 {[%clk 0:03:00]}  Nf6 {[%clk 0:03:00]} 3. Nxe5 {[%clk 0:02:55]}  d6 {[%clk 0:03:00]} 4. Nf3 {[%clk 0:02:54]}  Nxe4 {[%clk 0:03:00]} 5. d4 {[%clk 0:02:55]}  d5 {[%clk 0:03:00]} 6. c4 {[%clk 0:02:53]}  Bb4+ {[%clk 0:02:59]} 7. Nbd2 {[%clk 0:02:40]}  O-O {[%clk 0:02:59]} 8. Be2 {[%clk 0:02:21]}  dxc4 {[%clk 0:02:55]} 9. O-O {[%clk 0:02:19]}  Nc6 {[%clk 0:02:54]} 10. Nxe4 {[%clk 0:02:17]}  Re8 {[%clk 0:02:49]} 11. Nc3 {[%clk 0:02:09]}  Bg4 {[%clk 0:02:49]} 12. h3 {[%clk 0:02:06]}  Bh5 {[%clk 0:02:49]} 13. Be3 {[%clk 0:02:05]}  Bxc3 {[%clk 0:02:33]} 14. bxc3 {[%clk 0:02:05]}  b5 {[%clk 0:02:33]} 15. a4 {[%clk 0:02:05]}  a6 {[%clk 0:02:34]} 16. axb5 {[%clk 0:02:05]}  axb5 {[%clk 0:02:35]} 17. Rxa8 {[%clk 0:02:05]}  Qxa8 {[%clk 0:02:35]} 18. Qb1 {[%clk 0:02:00]}  Rb8 {[%clk 0:02:32]} 19. d5 {[%clk 0:01:48]}  Ne7 {[%clk 0:02:28]} 20. Rd1 {[%clk 0:01:44]}  Nxd5 {[%clk 0:02:26]} 21. Bd4 {[%clk 0:01:42]}  Nf4 {[%clk 0:02:17]} 22. Qc2 {[%clk 0:01:26]}  Re8 {[%clk 0:02:17]} 23. Be3 {[%clk 0:01:22]}  Nxh3+ {[%clk 0:02:10]} 24. gxh3 {[%clk 0:01:14]}  Bxf3 {[%clk 0:02:09]} 25. Bxf3 {[%clk 0:01:05]}  Qxf3 {[%clk 0:02:10]} 26. Kh2 {[%clk 0:01:00]}  h5 {[%clk 0:02:05]} 27. Qd2 {[%clk 0:00:58]}  Re6 {[%clk 0:01:51]} 28. Qd8+ {[%clk 0:00:54]}  Kh7 {[%clk 0:01:51]} 29. Qd5 {[%clk 0:00:53]}  Rf6 {[%clk 0:01:28]} 30. Qxf3 {[%clk 0:00:52]}  Rxf3 {[%clk 0:01:29]} 31. Rd5 {[%clk 0:00:52]}  c6 {[%clk 0:01:24]} 32. Rxh5+ {[%clk 0:00:50]}  Kg6 {[%clk 0:01:24]} 33. Rc5 {[%clk 0:00:51]}  Rf6 {[%clk 0:01:25]} 34. Kg3 {[%clk 0:00:47]}  Rd6 {[%clk 0:01:24]} 35. Bd4 {[%clk 0:00:42]}  f6 {[%clk 0:01:23]} 36. h4 {[%clk 0:00:42]}  Kf7 {[%clk 0:01:23]} 37. Kg4 {[%clk 0:00:42]}  Ke6 {[%clk 0:01:21]} 38. h5 {[%clk 0:00:42]}  Kd7 {[%clk 0:01:19]} 39. Kf5 {[%clk 0:00:41]}  Re6 {[%clk 0:01:16]} 40. Kg6 {[%clk 0:00:39]}  Re7 {[%clk 0:01:16]} 41. f4 {[%clk 0:00:37]}  Kd6 {[%clk 0:01:16]} 42. Rf5 {[%clk 0:00:31]}  Rb7 {[%clk 0:01:14]} 43. h6 {[%clk 0:00:20]}  gxh6 {[%clk 0:01:15]} 44. Bxf6 {[%clk 0:00:20]}  c5 {[%clk 0:01:11]} 45. Be5+ {[%clk 0:00:19]}  Kc6 {[%clk 0:01:09]} 46. Rf6+ {[%clk 0:00:19]}  Kd5 {[%clk 0:01:09]} 47. Kxh6 {[%clk 0:00:18]}  b4 {[%clk 0:01:09]} 48. cxb4 {[%clk 0:00:17]}  cxb4 {[%clk 0:01:10]} 49. Rd6+ {[%clk 0:00:14]}  Kc5 {[%clk 0:01:10]} 50. f5 {[%clk 0:00:14]}  c3 {[%clk 0:01:10]} 51. Rg6 {[%clk 0:00:13]}  Kd5 {[%clk 0:01:08]} 52. Bf6 {[%clk 0:00:12]}  c2 {[%clk 0:01:06]} 53. Bb2 {[%clk 0:00:12]}  b3 {[%clk 0:01:07]} 54. Rg7 {[%clk 0:00:12]}  Ra7 {[%clk 0:00:56]} 55. f6 {[%clk 0:00:11]}  Ra2 {[%clk 0:00:55]} 56. f7 {[%clk 0:00:11]}  Rxb2 {[%clk 0:00:56]} 57. f8=Q {[%clk 0:00:11]}  c1=Q+ {[%clk 0:00:56]} 58. Kh7 {[%clk 0:00:10]}  Qc6 {[%clk 0:00:33]} 59. Rg5+ {[%clk 0:00:09]}  Kc4 {[%clk 0:00:32]} 60. Qf4+ {[%clk 0:00:09]}  Kc3 {[%clk 0:00:27]} 61. Rg3+ {[%clk 0:00:09]}  Kc2 {[%clk 0:00:28]} 62. Qf2+ {[%clk 0:00:09]}  Kb1 {[%clk 0:00:28]} 63. Qg1+ {[%clk 0:00:04]}  Ka2 {[%clk 0:00:28]} 64. Qa7+ {[%clk 0:00:05]}  Kb1 {[%clk 0:00:27]} 65. Rg1+ {[%clk 0:00:05]}  Kc2 {[%clk 0:00:27]} 66. Qf2+ {[%clk 0:00:06]}  Kd3 {[%clk 0:00:27]} 67. Rg3+ {[%clk 0:00:05]}  Ke4 {[%clk 0:00:25]} 68. Qf3+ {[%clk 0:00:05]}  Ke5 {[%clk 0:00:26]} 69. Qxc6 {[%clk 0:00:06]}  Rc2 {[%clk 0:00:24]} 70. Qb5+ {[%clk 0:00:05]}  Kf4 {[%clk 0:00:23]} 71. Qxb3 {[%clk 0:00:06]}  Rf2 {[%clk 0:00:23]} 72. Qe3+ {[%clk 0:00:06]}  Kf5 {[%clk 0:00:23]} 73. Qxf2+ {[%clk 0:00:06]} 1-0


[Site "https://www.chess.com"]

[Event "Titled Tuesday Blitz November 01 Late 2022"]
[White "Krzyzanowski, Marcin"]
[Black "Malka, Samuel"]
[WhiteFideId "1132199"]
[BlackFideId "20643675"]
[WhiteElo "2435"]
[BlackElo "2452"]
[Result "1-0"]
[Round "04"]
[TimeControl "180+1"]
[Date "2022.11.02"]
[WhiteClock "0:01:47"]
[BlackClock "0:00:36"]

1. d4 {[%clk 0:03:00]}  Nf6 {[%clk 0:02:59]} 2. Nc3 {[%clk 0:03:00]}  d5 {[%clk 0:02:58]} 3. Bf4 {[%clk 0:03:01]}  g6 {[%clk 0:02:56]} 4. e3 {[%clk 0:03:00]}  Bg7 {[%clk 0:02:55]} 5. h4 {[%clk 0:03:01]}  h5 {[%clk 0:02:54]} 6. Nf3 {[%clk 0:02:59]}  O-O {[%clk 0:02:54]} 7. Be2 {[%clk 0:02:58]}  c5 {[%clk 0:02:54]} 8. Nb5 {[%clk 0:02:58]}  Na6 {[%clk 0:02:54]} 9. c3 {[%clk 0:02:58]}  Ne4 {[%clk 0:02:35]} 10. a4 {[%clk 0:02:56]}  f6 {[%clk 0:02:10]} 11. Nd2 {[%clk 0:02:53]}  e5 {[%clk 0:01:41]} 12. Nxe4 {[%clk 0:02:48]}  exf4 {[%clk 0:01:41]} 13. Nxc5 {[%clk 0:02:44]}  Nxc5 {[%clk 0:01:40]} 14. dxc5 {[%clk 0:02:45]}  fxe3 {[%clk 0:01:40]} 15. fxe3 {[%clk 0:02:45]}  Qe7 {[%clk 0:01:39]} 16. Qxd5+ {[%clk 0:02:44]}  Kh7 {[%clk 0:01:27]} 17. e4 {[%clk 0:02:21]}  Rd8 {[%clk 0:01:10]} 18. Nd6 {[%clk 0:02:17]}  Be6 {[%clk 0:01:08]} 19. Qxb7 {[%clk 0:02:15]}  Bd7 {[%clk 0:01:04]} 20. O-O-O {[%clk 0:01:57]}  Rab8 {[%clk 0:00:59]} 21. Qa6 {[%clk 0:01:55]}  f5 {[%clk 0:00:40]} 22. Bb5 {[%clk 0:01:48]}  Qxe4 {[%clk 0:00:36]} 23. Nxe4 {[%clk 0:01:47]} 1-0


[Site "https://www.chess.com"]